bitfinex/quotes_BTCUSD_20240826
["timestamp","ask_amount","ask_price","bid_price","bid_amount"]
[1724682815102,0.34089701,63594.0,63589.0,0.023]
[1724682815315,0.01209701,63594.0,63593.0,0.15725]
[1724682815539,0.01209701,63594.0,63593.0,0.023]
[1724682815754,0.01209701,63594.0,63589.0,0.1]
[1724682815755,0.3288,63593.0,63589.0,0.1]
[1724682815963,0.00393163,63592.0,63585.0,0.1]
[1724682816171,0.00393163,63592.0,63586.0,0.023]
[1724682816387,0.3288,63590.0,63585.0,0.1]
[1724682816809,0.3288,63590.0,63586.0,0.023]
[1724682817017,0.3288,63590.0,63588.0,0.157261]
[1724682817221,0.3288,63590.0,63586.0,0.023]
[1724682817222,0.3288,63590.0,63589.0,0.023]
[1724682817630,0.3288,63590.0,63585.0,0.414539]
[1724682817631,0.3288,63590.0,63588.0,0.023]
[1724682817846,0.3288,63590.0,63586.0,0.337533]
[1724682818053,0.3288,63590.0,63588.0,0.157261]
[1724682818259,0.3288,63590.0,63589.0,0.023]
[1724682818477,0.3327316,63590.0,63585.0,0.1]
[1724682818691,0.00909701,63594.0,63593.0,0.78625]
[1724682818908,0.00909701,63594.0,63593.0,1.04242801]
[1724682819117,0.00909701,63594.0,63593.0,1.35692801]
[1724682819339,0.00909701,63594.0,63593.0,1.04242801]
[1724682819747,0.00909701,63594.0,63593.0,1.06542801]
[1724682819959,0.02009701,63594.0,63593.0,1.06742801]
[1724682820170,0.02009701,63594.0,63593.0,0.75192801]
[1724682820378,0.02009701,63594.0,63593.0,0.91025]
[1724682820589,0.02009701,63594.0,63593.0,0.59575]
[1724682821205,0.02009701,63594.0,63593.0,0.91025]
[1724682821414,0.02009701,63594.0,63593.0,0.90925]
[1724682821415,0.01509701,63594.0,63593.0,0.90925]
[1724682821657,0.01509701,63594.0,63593.0,0.91625]
[1724682821873,0.00909701,63594.0,63593.0,1.38492801]
[1724682822489,0.00909701,63594.0,63593.0,1.37992801]
[1724682822950,0.00909701,63594.0,63593.0,1.38892801]
[1724682823187,0.00909701,63595.0,63593.0,1.38892801]
[1724682823188,0.00909701,63595.0,63594.0,1.100732]
[1724682823409,0.00909701,63595.0,63594.0,2.01250501]
[1724682823625,0.00949701,63619.0,63612.0,0.786015]
[1724682823834,0.00949701,63619.0,63612.0,2.59379297]
[1724682824043,0.00949701,63619.0,63612.0,2.61679297]
[1724682825059,0.5054,63617.0,63612.0,0.594609]
[1724682825340,0.5054,63617.0,63612.0,1.63320896]
[1724682825582,0.5054,63617.0,63612.0,1.31880296]
[1724682825583,0.3141,63617.0,63612.0,1.31880296]
[1724682825836,0.010086,63613.0,63612.0,1.34680296]
[1724682826079,0.009086,63613.0,63612.0,1.33280296]
[1724682826340,0.009086,63613.0,63612.0,1.01639696]
[1724682826608,0.537286,63613.0,63612.0,0.012]
[1724682826849,0.3323,63608.0,63582.0,0.42163889]
[1724682827126,0.3323,63608.0,63568.0,0.001]
[1724682827127,0.3112,63599.0,63590.0,0.46876099]
[1724682827357,0.00393146,63598.0,63583.0,0.15617801]
[1724682827605,0.3112,63597.0,63583.0,0.15617801]
[1724682827958,0.3112,63597.0,63574.0,0.40978796]
[1724682827959,0.01168708,63596.0,63581.0,0.314555]
[1724682828438,0.46876099,63587.0,63571.0,0.000824]
[1724682828441,0.157301,63572.0,63571.0,0.000824]
[1724682828625,0.83287901,63572.0,63571.0,0.000824]
[1724682828918,0.00759529,63572.0,63571.0,0.000824]
[1724682829270,0.33442842,63572.0,63571.0,0.000824]
[1724682829497,0.32683313,63572.0,63571.0,0.000824]
[1724682829779,0.83280054,63572.0,63571.0,0.000824]
[1724682830080,1.14940354,63572.0,63571.0,0.000824]
[1724682830333,1.14940354,63572.0,63529.0,0.316814]
[1724682830334,0.3176,63559.0,63542.0,0.31475]
[1724682830620,0.48230254,63572.0,63543.0,0.46876099]
[1724682830621,0.3176,63556.0,63543.0,0.46876099]
[1724682830869,0.3176,63552.0,63531.0,0.315628]
[1724682831173,0.157365,63547.0,63531.0,0.000824]
[1724682831409,0.3176,63546.0,63533.0,0.314795]
[1724682831665,0.3176,63546.0,63531.0,0.000824]
[1724682831941,0.3176,63542.0,63531.0,0.000824]
[1724682832205,0.1601134,63541.0,63532.0,0.157898]
[1724682832456,0.16312704,63541.0,63532.0,0.0005]
[1724682832706,0.15992383,63541.0,63532.0,0.0005]
[1724682832950,0.15992383,63541.0,63533.0,0.001]
[1724682833222,0.3176,63542.0,63532.0,0.0005]
[1724682833485,0.314708,63551.0,63532.0,0.0005]
[1724682833486,0.5123,63554.0,63536.0,0.15739]
[1724682833769,0.5123,63554.0,63533.0,0.15617801]
[1724682833770,0.008,63541.0,63540.0,0.472143]
[1724682834046,0.008,63541.0,63540.0,0.94308301]
[1724682834300,0.008,63541.0,63540.0,1.70794501]
[1724682834829,0.001,63546.0,63540.0,0.93819707]
[1724682835099,0.3201,63560.0,63559.0,0.157334]
[1724682835352,0.3201,63560.0,63541.0,0.29633507]
[1724682835353,0.32403362,63560.0,63541.0,0.29633507]
[1724682835620,0.3201,63560.0,63554.0,0.157344]
[1724682836138,0.3201,63560.0,63555.0,0.023]
[1724682836435,0.0039337,63559.0,63555.0,0.023]
[1724682836706,0.0039337,63559.0,63552.0,0.123]
[1724682836996,0.0039337,63559.0,63541.0,0.47093001]
[1724682836997,0.1612677,63559.0,63541.0,0.47093001]
[1724682837288,0.3052,63554.0,63541.0,0.257378]
[1724682837562,0.16011252,63553.0,63542.0,0.1]
[1724682837816,0.314592,63575.0,63550.0,0.314712]
[1724682837817,0.009,63560.0,63550.0,0.314712]
[1724682838104,0.009,63560.0,63559.0,0.157334]
[1724682838391,0.01,63560.0,63559.0,0.78667]
[1724682838676,0.01,63560.0,63559.0,1.35751601]
[1724682838971,0.3052,63567.0,63559.0,1.38051601]
[1724682839202,0.46876099,63580.0,63559.0,1.38051601]
[1724682839203,0.3212,63579.0,63570.0,0.31461]
[1724682839454,0.3212,63579.0,63573.0,0.157297]
[1724682839711,0.00393243,63578.0,63567.0,0.157312]
[1724682840103,0.314506,63592.0,63567.0,0.157312]
[1724682840104,0.04656399,63606.0,63583.0,0.314547]
[1724682840107,0.46876099,63600.0,63576.0,0.3237]
[1724682840355,0.46876099,63600.0,63594.0,0.314492]
[1724682840566,0.3212,63607.0,63579.0,0.01692802]
[1724682840567,0.46876099,63606.0,63595.0,0.023]
[1724682840784,0.46876099,63606.0,63579.0,0.01692802]
[1724682840785,0.00393125,63605.0,63579.0,0.01692802]
[1724682840983,0.003931,63606.0,63580.0,0.17917801]
[1724682841190,0.003931,63606.0,63581.0,0.1]
[1724682841191,0.314441,63605.0,63581.0,0.1]
[1724682841424,0.3076,63603.0,63583.0,0.157273]
[1724682841622,0.3076,63603.0,63582.0,0.17917801]
[1724682841623,0.157245,63595.0,63582.0,0.023]
[1724682841861,0.5255,63593.0,63582.0,0.023]
[1724682842062,0.00393187,63592.0,63582.0,0.023]
[1724682842478,0.00393187,63592.0,63579.0,0.123]
[1724682842716,0.3092,63590.0,63579.0,0.1]
[1724682842953,0.0039322,63589.0,63582.0,0.007]
[1724682843162,0.46537801,63590.0,63579.0,0.257284]
[1724682843571,0.46537801,63590.0,63580.0,0.157281]
[1724682843775,0.46537801,63590.0,63581.0,0.1]
[1724682844214,0.3092,63590.0,63582.0,0.005]
[1724682844422,0.3092,63590.0,63586.0,0.157266]
[1724682844623,0.3092,63590.0,63582.0,0.005]
[1724682844624,0.00393186,63589.0,63582.0,0.009]
[1724682844826,0.157262,63588.0,63582.0,0.004]
[1724682844997,0.00393213,63587.0,63582.0,0.004]
[1724682845397,0.00393213,63587.0,63581.0,0.001]
[1724682845622,0.00393213,63587.0,63579.0,0.000824]
[1724682845824,0.00692087,63586.0,63581.0,0.001]
[1724682846049,0.16011028,63585.0,63582.0,0.001]
[1724682846261,0.3307,63584.0,63582.0,0.001]
[1724682846471,0.16011074,63583.0,63582.0,0.001]
[1724682846906,0.3245537,63583.0,63582.0,0.001]
[1724682847111,0.1672797,63583.0,63582.0,0.001]
[1724682847529,0.1672797,63583.0,63579.0,0.000824]
[1724682847733,0.1672797,63583.0,63579.0,0.001824]
[1724682848352,0.16334697,63583.0,63579.0,0.000824]
[1724682848553,0.16727955,63583.0,63579.0,0.000824]
[1724682848770,0.16827955,63583.0,63579.0,0.000824]
[1724682849204,0.17027955,63583.0,63579.0,0.000824]
[1724682849405,0.00916896,63583.0,63579.0,0.000824]
[1724682849615,0.00393254,63582.0,63579.0,0.000824]
[1724682849822,0.01310153,63583.0,63579.0,0.000824]
[1724682850028,0.00716917,63581.0,63579.0,0.000824]
[1724682850246,0.002,63583.0,63579.0,0.000824]
[1724682850528,0.00716919,63582.0,63579.0,0.000824]
[1724682850772,0.00716919,63582.0,63581.0,0.157279]
[1724682851021,0.00716919,63582.0,63581.0,0.471838]
[1724682851274,0.00716919,63582.0,63579.0,0.000824]
[1724682851523,0.4692,63594.0,63579.0,0.000824]
[1724682851524,0.4732107,63581.0,63579.0,0.000824]
[1724682851788,0.32023934,63581.0,63579.0,0.001824]
[1724682852020,0.32023934,63581.0,63579.0,0.000824]
[1724682852314,0.00393253,63580.0,63579.0,0.000824]
[1724682852571,0.35377801,63580.0,63579.0,0.000824]
[1724682852835,0.36091732,63580.0,63579.0,0.000824]
[1724682853068,0.83276332,63580.0,63579.0,0.001824]
[1724682853278,1.14732732,63580.0,63579.0,0.000824]
[1724682853491,1.79769132,63580.0,63579.0,0.000824]
[1724682853704,1.48312732,63580.0,63579.0,0.000824]
[1724682854178,1.48312732,63580.0,63552.0,0.4716]
[1724682854179,0.157314,63567.0,63552.0,0.4716]
[1724682854395,0.34161161,63566.0,63555.0,0.46876099]
[1724682854601,0.18863851,63566.0,63555.0,0.314685]
[1724682854807,0.18863851,63566.0,63557.0,0.157337]
[1724682855007,0.00393342,63565.0,63554.0,0.31469]
[1724682855212,0.00393342,63565.0,63556.0,0.157341]
[1724682855417,0.00709741,63564.0,63556.0,0.157341]
[1724682855628,0.00393342,63563.0,63555.0,0.157342]
[1724682855832,0.00393342,63563.0,63552.0,0.4726]
[1724682856041,0.157322,63564.0,63552.0,0.4726]
[1724682856258,0.00709741,63562.0,63552.0,0.4726]
[1724682856493,0.0039338,63561.0,63553.0,0.1]
[1724682856715,0.00393378,63560.0,63553.0,0.1]
[1724682856933,0.00393378,63560.0,63552.0,0.4726]
[1724682856934,0.47707801,63559.0,63552.0,0.001]
[1724682857150,0.792945,63553.0,63552.0,0.001]
[1724682857363,0.792945,63553.0,63534.0,0.4716]
[1724682857364,0.157356,63550.0,63534.0,0.4716]
[1724682857573,0.00393459,63551.0,63542.0,0.157374]
[1724682857807,0.00694392,63549.0,63539.0,0.314765]
[1724682858033,0.3209,63553.0,63539.0,0.314765]
[1724682858034,0.00393416,63552.0,63539.0,0.314765]
[1724682858281,0.3209,63553.0,63547.0,0.157363]
[1724682858282,0.00694392,63548.0,63547.0,0.157363]
[1724682858484,0.00694392,63548.0,63547.0,0.786817]
[1724682858916,0.00694392,63548.0,63547.0,0.57209]
[1724682859123,0.5052,63558.0,63548.0,0.157359]
[1724682859342,0.00393382,63557.0,63549.0,0.023]
[1724682859551,0.00393382,63557.0,63548.0,0.1]
[1724682859552,0.16011183,63557.0,63548.0,0.1]
[1724682859753,0.16011183,63557.0,63541.0,0.000824]
[1724682859754,0.157351,63552.0,63541.0,0.000824]
[1724682859965,0.314685,63556.0,63541.0,0.000824]
[1724682860207,0.001,63548.0,63547.0,0.008]
[1724682860422,0.001,63548.0,63543.0,0.1]
[1724682860625,0.001,63548.0,63544.0,0.023]
[1724682860831,0.15727934,63555.0,63544.0,0.023]
[1724682861041,0.157351,63553.0,63544.0,0.023]
[1724682861248,0.00393433,63552.0,63544.0,0.023]
[1724682861484,0.00393434,63551.0,63544.0,0.023]
[1724682861692,0.3341,63550.0,63541.0,0.100824]
[1724682861903,0.00393457,63549.0,63541.0,0.000824]
[1724682862143,0.157361,63548.0,63541.0,0.000824]
[1724682862350,0.16129763,63547.0,63544.0,0.002]
[1724682862559,0.00393463,63547.0,63544.0,0.005]
[1724682862779,0.00393463,63547.0,63544.0,0.002]
[1724682862992,0.968105,63545.0,63544.0,0.002]
[1724682863211,1.43902001,63545.0,63544.0,0.002]
[1724682863426,0.314743,63544.0,63531.0,0.000824]
[1724682863642,0.31748723,63543.0,63531.0,0.000824]
[1724682863849,0.16011323,63543.0,63531.0,0.000824]
[1724682864084,0.31748723,63543.0,63541.0,0.005]
[1724682864298,0.496,63545.0,63541.0,0.005]
[1724682864508,0.496,63545.0,63536.0,0.15739]
[1724682864715,0.496,63545.0,63537.0,0.180387]
[1724682865379,0.3041,63545.0,63537.0,0.023]
[1724682865584,0.001,63561.0,63532.0,0.315299]
[1724682865585,0.3322,63551.0,63544.0,0.001]
[1724682865812,0.3322,63551.0,63542.0,0.157375]
[1724682866039,0.3322,63551.0,63544.0,0.15737]
[1724682866474,0.00393431,63550.0,63545.0,0.023]
[1724682866928,0.3322,63551.0,63535.0,0.781]
[1724682867144,0.001,63545.0,63536.0,0.123]
[1724682867366,0.001,63545.0,63541.0,0.157377]
[1724682867585,0.001,63545.0,63537.0,0.314774]
[1724682867794,0.3322,63551.0,63539.0,0.157382]
[1724682868008,0.16217801,63550.0,63545.0,0.001]
[1724682868233,0.006,63550.0,63545.0,0.001]
[1724682868451,0.006,63550.0,63549.0,0.472075]
[1724682868678,0.3322,63568.0,63549.0,0.472075]
[1724682868679,0.46876099,63565.0,63549.0,0.123]
[1724682868894,0.00393366,63564.0,63553.0,0.157348]
[1724682869107,0.3322,63568.0,63560.0,0.157331]
[1724682869339,0.1803,63570.0,63558.0,0.00314632]
[1724682869562,0.1803,63570.0,63569.0,0.157309]
[1724682870007,0.1981,63577.0,63571.0,0.314607]
[1724682870218,0.1981,63577.0,63560.0,0.623162]
[1724682870428,0.1981,63577.0,63561.0,0.123]
[1724682870644,0.1981,63577.0,63566.0,0.314633]
[1724682870859,0.1981,63577.0,63574.0,0.157295]
[1724682871091,0.00393253,63576.0,63561.0,0.123]
[1724682871306,0.16011054,63576.0,63562.0,0.157325]
[1724682871508,0.16011054,63576.0,63563.0,0.123]
[1724682871718,0.013,63565.0,63564.0,0.157321]
[1724682871953,0.16011054,63576.0,63565.0,0.157318]
[1724682872157,0.16011054,63576.0,63574.0,0.001]
[1724682872408,0.16011054,63576.0,63574.0,0.002]
[1724682872677,0.16011054,63576.0,63574.0,0.001]
[1724682872912,0.471883,63575.0,63574.0,0.001]
[1724682873233,0.15617801,63575.0,63574.0,0.001]
[1724682873400,0.1981,63577.0,63572.0,0.1573]
[1724682873619,0.008,63576.0,63574.0,0.001]
[1724682874056,0.16811081,63576.0,63574.0,0.001]
[1724682874491,0.62806101,63575.0,63574.0,0.001]
[1724682874702,1.26365001,63575.0,63574.0,0.001]
[1724682875388,0.3327,63564.0,63553.0,0.1]
[1724682875596,0.3327,63564.0,63557.0,0.46876099]
[1724682875814,0.3327,63564.0,63553.0,0.1]
[1724682876023,0.3327,63564.0,63555.0,0.157343]
[1724682876252,0.3327,63564.0,63556.0,0.1]
[1724682876469,0.31350201,63563.0,63553.0,0.1]
[1724682876684,0.31743586,63563.0,63553.0,0.1]
[1724682876896,0.16011186,63563.0,63553.0,0.1]
[1724682877336,0.1941,63562.0,63540.0,0.314761]
[1724682877551,0.31744212,63561.0,63546.0,0.314732]
[1724682877780,0.31744212,63561.0,63548.0,0.628959]
[1724682877993,0.1941,63562.0,63557.0,0.005]
[1724682878203,0.3327,63564.0,63560.0,0.15733]
[1724682878418,0.0039334,63563.0,63557.0,0.157337]
[1724682878628,0.3327,63564.0,63558.0,0.023]
[1724682878834,0.00393318,63563.0,63558.0,0.180334]
[1724682879057,0.00393318,63563.0,63550.0,0.1]
[1724682879261,0.00393318,63563.0,63554.0,0.157345]
[1724682879470,0.3327,63564.0,63557.0,0.001]
[1724682879756,0.48887801,63564.0,63557.0,0.001]
[1724682879962,0.00393386,63563.0,63551.0,0.023]
[1724682880171,0.15617801,63562.0,63550.0,0.023]
[1724682880395,0.00393397,63561.0,63550.0,0.023]
[1724682880608,0.157332,63560.0,63550.0,0.023]
[1724682880817,0.00393396,63559.0,63550.0,0.023]
[1724682881257,0.482637,63558.0,63549.0,0.1]
[1724682881471,0.157373,63543.0,63542.0,0.000824]
[1724682881698,0.68647801,63543.0,63542.0,0.000824]
[1724682881909,0.53733476,63543.0,63542.0,0.000824]
[1724682882783,0.34123476,63543.0,63542.0,0.000824]
[1724682883003,0.00203476,63543.0,63542.0,0.000824]
[1724682883215,0.5303,63549.0,63542.0,0.158198]
[1724682883440,0.001,63543.0,63542.0,0.1652]
[1724682883661,0.001,63543.0,63542.0,0.479952]
[1724682883867,0.001,63543.0,63542.0,0.817704]
[1724682884082,0.001,63543.0,63542.0,1.65006624]
[1724682884494,0.001,63543.0,63542.0,1.76630553]
[1724682884735,0.001,63543.0,63542.0,1.75289529]
[1724682884918,0.001,63543.0,63542.0,1.5903213]
[1724682885124,0.001,63543.0,63542.0,1.5853213]
[1724682885333,0.001,63543.0,63542.0,1.58008201]
[1724682885334,0.002,63543.0,63542.0,1.58008201]
[1724682885553,0.001,63543.0,63542.0,1.57725801]
[1724682887011,0.001,63543.0,63542.0,1.89401001]
[1724682887456,0.001,63543.0,63542.0,1.89201001]
[1724682887884,0.00081058,63543.0,63542.0,1.89201001]
[1724682888121,0.00081058,63543.0,63542.0,1.89601001]
[1724682888122,0.00181058,63543.0,63542.0,1.89601001]
[1724682889188,0.00181058,63543.0,63542.0,0.111]
[1724682889846,0.00181058,63543.0,63542.0,0.268376]
[1724682890481,0.00181058,63543.0,63542.0,0.92088]
[1724682890697,0.00181058,63543.0,63542.0,1.07705801]
[1724682890913,0.00181058,63543.0,63542.0,1.39181001]
[1724682892448,0.00181058,63543.0,63542.0,2.02856201]
[1724682892662,0.00181058,63543.0,63542.0,2.22764537]
[1724682892872,0.00181058,63543.0,63542.0,2.54339737]
[1724682893316,0.00181058,63543.0,63542.0,3.01472978]
[1724682893530,0.46966739,63570.0,63569.0,0.786545]
[1724682893991,0.0009064,63570.0,63569.0,0.494927]
[1724682894199,0.0009064,63570.0,63565.0,0.157318]
[1724682894200,0.0008564,63570.0,63565.0,0.157318]
[1724682894411,0.0008564,63570.0,63560.0,0.1]
[1724682894412,0.0008564,63570.0,63566.0,0.123]
[1724682895304,0.0078564,63570.0,63569.0,0.001]
[1724682895513,0.0138564,63570.0,63569.0,0.001]
[1724682895723,0.0078564,63570.0,63563.0,0.023]
[1724682895948,0.00393302,63569.0,63563.0,0.023]
[1724682896168,0.3059,63568.0,63566.0,0.001]
[1724682896391,0.3059,63568.0,63560.0,0.337658]
[1724682896606,0.3059,63568.0,63563.0,0.157324]
[1724682896812,0.3059,63568.0,63564.0,0.123]
[1724682897452,0.3059,63568.0,63566.0,0.001]
[1724682898084,0.3059,63568.0,63564.0,0.28032]
[1724682898294,0.3059,63568.0,63564.0,0.123]
[1724682898510,0.3059,63568.0,63544.0,0.3065]
[1724682898511,0.00393302,63567.0,63544.0,0.3065]
[1724682898720,0.3119,63568.0,63554.0,0.01199997]
[1724682898959,0.3119,63568.0,63555.0,0.18232468]
[1724682899162,0.3099,63568.0,63566.0,0.157314]
[1724682899374,0.3059,63568.0,63566.0,0.157314]
[1724682899586,0.3059,63568.0,63556.0,0.4093]
[1724682899812,0.00593301,63567.0,63560.0,0.15733]
[1724682900020,0.00593301,63567.0,63561.0,0.280328]
[1724682900501,0.00593301,63567.0,63561.0,0.123]
[1724682900721,0.3155,63564.0,63549.0,0.314717]
[1724682900939,0.3155,63561.0,63547.0,0.01191397]
[1724682901210,0.3155,63561.0,63535.0,0.3545]
[1724682901211,0.001,63558.0,63530.0,0.000824]
[1724682901436,0.04659363,63550.0,63535.0,0.157393]
[1724682901650,0.51293464,63549.0,63535.0,0.01227859]
[1724682901866,0.3155,63546.0,63535.0,0.01227859]
[1724682902083,0.1935,63549.0,63538.0,0.31477]
[1724682902310,0.09318727,63553.0,63535.0,0.01542642]
[1724682902311,0.3155,63553.0,63547.0,0.001]
[1724682902547,0.04659363,63560.0,63539.0,0.3208]
[1724682902548,0.014,63558.0,63548.0,0.15617801]
[1724682902765,0.014,63558.0,63550.0,0.314712]
[1724682902969,0.014,63558.0,63550.0,0.15617801]
[1724682903214,0.014,63558.0,63551.0,0.023]
[1724682903429,0.014,63558.0,63548.0,0.123]
[1724682903640,0.014,63558.0,63557.0,0.786695]
[1724682903858,0.3323,63564.0,63557.0,0.023]
[1724682904121,0.3323,63564.0,63556.0,0.15734]
[1724682904339,0.1841,63567.0,63548.0,0.023]
[1724682904340,0.314658,63561.0,63548.0,0.023]
[1724682904565,0.157347,63554.0,63541.0,0.002824]
[1724682904785,0.157374,63543.0,63541.0,0.000824]
[1724682905013,0.3195,63542.0,63541.0,0.000824]
[1724682905483,0.3195,63542.0,63541.0,0.001824]
[1724682905689,0.3195,63542.0,63541.0,0.000824]
[1724682906112,0.3195,63542.0,63541.0,0.001824]
[1724682906318,0.00393449,63546.0,63541.0,0.000824]
[1724682906745,0.00393449,63546.0,63541.0,0.002824]
[1724682906964,0.00393449,63546.0,63541.0,0.003824]
[1724682907179,0.00393449,63546.0,63542.0,0.023824]
[1724682907387,0.16129548,63549.0,63542.0,0.023824]
[1724682907599,0.157367,63546.0,63542.0,0.023824]
[1724682907809,0.00393447,63545.0,63542.0,0.023824]
[1724682908056,0.323,63550.0,63542.0,0.023824]
[1724682908476,0.004,63546.0,63543.0,0.15617801]
[1724682908688,0.004,63546.0,63544.0,0.023]
[1724682908936,0.157373,63543.0,63542.0,0.000824]
[1724682909155,0.65655482,63543.0,63542.0,0.000824]
[1724682909353,0.51103482,63543.0,63542.0,0.000824]
[1724682909558,0.51103482,63543.0,63542.0,0.001824]
[1724682910206,0.012,63546.0,63542.0,0.15800201]
[1724682910415,0.004,63546.0,63545.0,0.472105]
[1724682910645,0.3125,63553.0,63545.0,0.472105]
[1724682910646,0.3125,63553.0,63548.0,0.157359]
[1724682910854,0.31643396,63553.0,63543.0,0.023]
[1724682911062,0.008,63550.0,63542.0,0.024824]
[1724682911270,0.008,63550.0,63545.0,0.157367]
[1724682911482,0.3125,63553.0,63542.0,0.339572]
[1724682911483,0.3125,63553.0,63546.0,0.023]
[1724682911691,0.3125,63553.0,63549.0,0.157358]
[1724682911940,0.3265,63553.0,63550.0,0.023]
[1724682912225,0.014,63553.0,63552.0,0.472053]
[1724682912501,0.014,63553.0,63552.0,1.28063501]
[1724682912761,0.014,63553.0,63552.0,0.65123101]
[1724682913230,0.014,63553.0,63552.0,0.17917801]
[1724682913482,0.014,63553.0,63552.0,0.65123101]
[1724682913727,0.014,63553.0,63552.0,1.28063501]
[1724682913728,0.028,63553.0,63552.0,1.28063501]
[1724682914025,0.029,63553.0,63552.0,1.07193301]
[1724682914242,0.015,63553.0,63552.0,1.07193301]
[1724682914504,0.015,63553.0,63552.0,0.033]
[1724682914739,0.3184,63553.0,63552.0,0.033]
[1724682915213,0.3034,63553.0,63552.0,0.027]
[1724682915452,0.3044,63553.0,63552.0,0.033]
[1724682915702,0.3034,63553.0,63552.0,0.027]
[1724682915967,0.3278,63560.0,63554.0,0.157346]
[1724682916216,0.3278,63560.0,63555.0,0.023]
[1724682916701,0.3278,63560.0,63554.0,0.023]
[1724682916958,0.3278,63560.0,63552.0,0.023]
[1724682917213,0.001,63553.0,63552.0,0.023]
[1724682917460,0.001,63553.0,63552.0,0.19750796]
[1724682917716,0.3278,63560.0,63552.0,0.19750796]
[1724682917717,0.3278,63560.0,63553.0,0.157347]
[1724682917970,0.3278,63560.0,63555.0,0.315686]
[1724682917971,0.008,63560.0,63555.0,0.315686]
[1724682918225,0.008,63560.0,63558.0,0.157335]
[1724682918469,0.014,63560.0,63557.0,0.157338]
[1724682918729,0.008,63560.0,63559.0,0.023]
[1724682919223,0.014,63560.0,63559.0,0.157334]
[1724682919476,0.0009064,63563.0,63559.0,0.023]
[1724682919742,0.0009064,63563.0,63560.0,0.023]
[1724682920233,0.0009064,63563.0,63559.0,0.023]
[1724682920525,0.006,63560.0,63559.0,0.001]
[1724682920821,0.014,63560.0,63559.0,0.002825]
[1724682921055,0.171331,63560.0,63559.0,0.002825]
[1724682921336,1.50661996,63560.0,63559.0,0.001825]
[1724682921597,2.1245301,63560.0,63559.0,0.001825]
[1724682921869,2.1245301,63560.0,63536.0,0.01715992]
[1724682921870,0.157373,63543.0,63536.0,0.01715992]
[1724682922097,0.668373,63543.0,63532.0,0.0005]
[1724682922317,0.98312,63543.0,63532.0,0.0005]
[1724682922946,0.98312,63543.0,63542.0,0.01275976]
[1724682923157,0.521,63543.0,63542.0,0.001824]
[1724682923418,0.521,63543.0,63542.0,0.002824]
[1724682923646,1.47504501,63543.0,63542.0,0.002824]
[1724682924886,1.78979201,63543.0,63542.0,0.002824]
[1724682925183,2.61181866,63543.0,63542.0,0.002824]
[1724682925433,0.786992,63533.0,63532.0,0.0005]
[1724682925698,2.20818412,63533.0,63532.0,0.0005]
[1724682926248,1.83565685,63533.0,63532.0,0.0005]
[1724682926498,1.45087001,63533.0,63532.0,0.0005]
[1724682927014,1.51152824,63533.0,63532.0,0.0005]
[1724682927283,1.45087001,63533.0,63532.0,0.0005]
[1724682927517,1.46487001,63533.0,63532.0,0.0005]
[1724682928183,1.45087001,63533.0,63532.0,0.0005]
[1724682928607,1.76566701,63533.0,63532.0,0.0005]
[1724682929240,1.77966701,63533.0,63532.0,0.0005]
[1724682929664,1.79366701,63533.0,63532.0,0.0005]
[1724682930104,2.02175118,63533.0,63532.0,0.0005]
[1724682930318,2.26659569,63533.0,63532.0,0.0005]
[1724682930532,2.69704869,63533.0,63532.0,0.0005]
[1724682930755,1.594403,63532.0,63531.0,0.00047057]
[1724682930986,1.75058101,63532.0,63531.0,0.00047057]
[1724682931503,0.337533,63519.0,63507.0,0.00826]
[1724682931722,1.11907701,63519.0,63507.0,0.00826]
[1724682931933,1.12780098,63519.0,63507.0,0.00826]
[1724682932382,0.65550198,63519.0,63507.0,0.00826]
[1724682932592,0.65550198,63519.0,63508.0,0.3192]
[1724682932593,0.49932397,63519.0,63508.0,0.3192]
[1724682932802,0.51313464,63519.0,63508.0,0.3192]
[1724682933015,0.49913464,63519.0,63507.0,0.00826]
[1724682933222,0.49913464,63519.0,63507.0,0.165722]
[1724682933431,0.51313464,63519.0,63507.0,0.165722]
[1724682933639,0.49913464,63519.0,63507.0,0.165722]
[1724682933947,0.66856764,63519.0,63507.0,0.00826]
[1724682934572,0.49913464,63519.0,63507.0,0.00826]
[1724682934785,0.97143364,63519.0,63507.0,0.00826]
[1724682935221,0.66756764,63519.0,63507.0,0.00826]
[1724682935424,0.65656764,63519.0,63507.0,0.00826]
[1724682935662,0.67056764,63519.0,63507.0,0.00826]
[1724682935877,0.68256764,63519.0,63507.0,0.00826]
[1724682936102,0.02072397,63519.0,63518.0,0.03125]
[1724682936584,0.012,63519.0,63518.0,0.00825]
[1724682936795,0.32661101,63519.0,63518.0,0.00825]
[1724682937015,0.97163759,63519.0,63518.0,0.00825]
[1724682937223,0.65677159,63519.0,63518.0,0.00825]
[1724682937431,0.64377159,63519.0,63518.0,0.00825]
[1724682937668,0.96963759,63519.0,63518.0,0.00825]
[1724682937877,0.03352401,63519.0,63518.0,0.00825]
[1724682938087,0.03352401,63519.0,63518.0,0.03125]
[1724682938506,0.03352401,63519.0,63518.0,0.188685]
[1724682938725,0.025,63519.0,63518.0,0.503556]
[1724682938976,0.025,63519.0,63518.0,0.188685]
[1724682939186,0.00393573,63527.0,63519.0,0.157433]
[1724682939401,0.00393573,63527.0,63519.0,0.023]
[1724682939615,0.00853357,63526.0,63519.0,0.180432]
[1724682939846,0.00393571,63525.0,63519.0,0.180432]
[1724682940055,0.00853357,63526.0,63519.0,0.180432]
[1724682940268,0.1869,63528.0,63519.0,0.023]
[1724682940455,0.00853357,63525.0,63519.0,0.023]
[1724682940692,0.3164,63530.0,63520.0,0.15743]
[1724682940908,0.3164,63530.0,63522.0,0.157424]